bitfinex-derivatives/quotes_ETHF0:USTF0_20250810
["timestamp","ask_amount","ask_price","bid_price","bid_amount"]
[1754786718625,2.11269671,4288.8,4288.7,1.4308]
[1754786718826,1.5642,4288.8,4288.7,1.4308]
[1754786719127,1.5642,4288.8,4288.7,1.5383]
[1754786719329,1.5642,4289.1,4289.0,1.05786]
[1754786719533,1.5642,4289.1,4289.0,0.88586]
[1754786719724,4.65536381,4289.1,4289.0,0.88586]
[1754786720033,3.62756381,4289.1,4289.0,1.78496]
[1754786720326,4.65536381,4289.1,4289.0,1.78496]
[1754786722735,4.65536381,4289.1,4289.0,1.53826]
[1754786726832,4.24756381,4289.1,4289.0,0.88586]
[1754786727039,4.65536381,4289.1,4289.0,1.53726]
[1754786728134,4.65536381,4289.1,4289.0,1.25876]
[1754786729040,4.65536381,4289.1,4289.0,0.46616]
[1754786729540,4.65536381,4289.1,4289.0,0.83906]
[1754786730242,4.65536381,4289.1,4289.0,1.25876]
[1754786732544,5.2049039,4289.1,4289.0,1.25876]
[1754786732936,4.65536381,4289.1,4289.0,0.46616]
[1754786733137,5.20490336,4289.1,4289.0,0.46616]
[1754786735045,5.20490336,4289.1,4289.0,0.86716]
[1754786735646,5.20490336,4289.1,4289.0,1.36716]
[1754786735847,5.20490336,4289.1,4289.0,0.96616]
[1754786736546,5.20490336,4289.1,4289.0,1.36716]
[1754786738648,5.67106336,4289.1,4289.0,1.36716]
[1754786738949,5.20490336,4289.1,4289.0,0.96616]
[1754786739152,5.20490336,4289.1,4289.0,1.54496]
[1754786739549,5.20490336,4289.1,4289.0,1.79116]
[1754786739751,3.64070336,4289.1,4289.0,2.31596]
[1754786739946,0.00179844,4289.7,4289.0,2.31596]
[1754786739947,0.00179844,4289.7,4289.6,1.3498]
[1754786741050,0.85039844,4289.7,4289.6,1.3498]
[1754786741451,1.50249844,4289.7,4289.6,1.3498]
[1754786742045,0.5804,4289.4,4289.3,0.86714]
[1754786742253,0.5804,4289.4,4289.3,1.29114]
[1754786742558,0.5804,4289.4,4289.3,1.81594]
[1754786742751,0.2682,4289.4,4289.3,1.81594]
[1754786742953,0.2452,4289.6,4289.5,1.06082]
[1754786743155,0.00179844,4289.7,4289.6,1.3498]
[1754786744758,0.51519844,4289.7,4289.6,1.3498]
[1754786745566,0.68649844,4289.7,4289.6,1.3498]
[1754786745769,0.67909844,4289.7,4289.6,1.3498]
[1754786745958,0.51519844,4289.7,4289.6,1.3498]
[1754786746159,0.00179844,4289.7,4289.6,1.3498]
[1754786746465,0.85039844,4289.7,4289.6,1.3498]
[1754786746663,1.50249844,4289.7,4289.6,1.3498]
[1754786746860,1.50249844,4289.7,4289.6,0.9957]
[1754786747060,1.50249844,4289.7,4289.6,0.825]
[1754786747261,1.5007,4289.4,4289.3,4.07493]
[1754786747460,1.5007,4289.4,4289.3,4.49893]
[1754786747662,1.5007,4289.4,4289.3,1.29113]
[1754786747867,1.5007,4289.4,4289.3,0.46613]
[1754786748163,1.5007,4289.4,4289.3,1.29113]
[1754786748664,1.5007,4289.4,4289.3,1.56853]
[1754786748967,1.5007,4289.4,4289.3,1.81593]
[1754786749661,0.00179844,4289.7,4289.6,1.8159]
[1754786750661,0.00179844,4289.7,4289.6,2.3159]
[1754786750856,3.7212,4290.6,4290.5,0.64381]
[1754786751066,3.7882,4292.1,4292.0,1.1024]
[1754786751365,3.7882,4292.1,4291.5,0.1067]
[1754786751566,6.80587582,4292.1,4291.5,0.1067]
[1754786751866,1.5007,4291.6,4291.5,0.82755857]
[1754786752067,1.5007,4291.6,4291.5,0.42655857]
[1754786752263,1.2555,4291.9,4291.8,0.9957]
[1754786752468,1.5007,4291.9,4291.8,1.3498]
[1754786752768,0.5804,4291.7,4291.6,0.5788]
[1754786752969,1.0938,4291.7,4291.6,1.3498]
[1754786753358,0.54815387,4292.0,4291.9,1.3498]
[1754786753562,0.00175326,4292.1,4291.5,3.21035857]
[1754786753563,0.00175326,4292.1,4292.0,1.06054]
[1754786753758,0.51515326,4292.1,4292.0,1.81564]
[1754786754064,0.51515326,4292.1,4292.0,1.1024]
[1754786754065,1.50245326,4292.1,4292.0,1.1024]
[1754786754365,1.31435,4292.9,4292.8,0.424]
[1754786754556,1.04618,4292.7,4292.6,0.424]
[1754786754759,1.5007,4292.7,4292.6,0.424]
[1754786754963,1.5007,4292.7,4292.6,1.1024]
[1754786755263,1.5007,4292.7,4292.6,1.3498]
[1754786755664,1.12855387,4293.0,4292.9,0.5947]
[1754786755962,0.9873,4293.0,4292.9,0.9957]
[1754786756162,1.5007,4293.0,4292.9,0.9957]
[1754786756370,2.04885387,4293.0,4292.9,0.9957]
[1754786756768,2.04885387,4293.0,4292.9,1.3498]
[1754786757064,2.04885387,4293.0,4292.9,1.1024]
[1754786757364,1.5007,4293.0,4292.9,0.825]
[1754786758364,1.5007,4293.0,4292.9,0.9957]
[1754786758666,1.0938,4293.0,4292.9,1.3498]
[1754786759362,1.5007,4293.0,4292.9,1.3498]
[1754786760166,0.5804,4292.7,4292.0,3.6088]
[1754786760369,1.5007,4292.1,4292.0,4.0328]
[1754786760570,3.41136207,4292.6,4292.5,1.3498]
[1754786760762,0.3352,4292.6,4292.5,1.3498]
[1754786761163,1.0938,4292.9,4292.8,1.06045]
[1754786761363,1.0938,4292.9,4292.8,1.41455]
[1754786761568,1.5007,4292.9,4292.8,1.16715]
[1754786761867,1.5007,4292.9,4292.8,1.46145]
[1754786762162,3.2078,4293.1,4292.8,0.46575]
[1754786762363,1.5007,4293.0,4292.9,1.1024]
[1754786762560,1.5007,4293.0,4292.9,1.3498]
[1754786762760,1.5007,4293.0,4292.9,1.1024]
[1754786762969,0.5804,4292.4,4292.3,0.88981]
[1754786763158,1.0938,4292.4,4292.3,1.06051]
[1754786763357,1.5007,4292.4,4292.3,1.46151]
[1754786763566,1.5007,4292.4,4292.3,0.46581]
[1754786764670,1.5007,4292.4,4292.3,0.88981]
[1754786765463,1.5007,4292.4,4292.3,1.27571]
[1754786766371,1.5007,4292.4,4292.3,0.46581]
[1754786766774,1.5007,4292.4,4292.3,0.63391]
[1754786767170,1.5007,4292.4,4292.3,0.46581]
[1754786768668,0.5348,4292.3,4292.2,1.28442]
[1754786768873,1.5386,4292.3,4292.2,1.3665]
[1754786769467,1.5386,4292.3,4292.2,1.0955]
[1754786770263,1.5386,4292.3,4292.2,0.989]
[1754786770472,1.5386,4292.3,4292.2,0.8186]
[1754786771570,1.5386,4292.2,4292.1,0.89853]
[1754786771875,1.5386,4292.2,4292.1,0.8186]
[1754786772074,1.5386,4292.2,4292.1,0.989]
[1754786772475,1.5386,4292.2,4292.1,1.0955]
[1754786773472,1.5386,4292.2,4292.1,0.989]
[1754786773974,0.46589,4291.6,4291.5,3.21035857]
[1754786774173,2.00449,4291.6,4291.5,0.00255857]
[1754786774372,1.5386,4291.6,4291.5,0.00255857]
[1754786774573,2.00449,4291.6,4291.5,0.00255857]
[1754786775771,5.00504113,4291.6,4291.5,0.00255857]
[1754786775970,8.21284113,4291.6,4291.5,0.00255857]
[1754786776167,8.7592429,4291.6,4291.5,0.00255857]
[1754786776479,8.7592429,4291.6,4290.6,0.3859]
[1754786776480,0.46598,4290.8,4290.6,0.3859]
[1754786776674,0.8227,4290.6,4290.5,0.1681]
[1754786776868,2.0046,4290.6,4290.5,0.1681]
[1754786777276,1.5386,4290.2,4290.1,1.56154]
[1754786777475,1.5386,4290.2,4290.1,0.99141762]
[1754786777975,1.5386,4290.2,4290.1,0.82101762]
[1754786778575,4.55971245,4290.2,4290.1,0.00241762]
[1754786778881,5.10659921,4290.2,4290.1,0.00241762]
[1754786779675,0.9322,4290.0,4288.8,0.3859]
[1754786779975,1.16514,4290.1,4288.8,0.3859]
[1754786779976,1.5386,4288.9,4288.8,0.9929]
[1754786780175,1.82389,4288.8,4288.7,0.1681]
[1754786780479,5.0294972,4288.8,4288.7,0.1681]
[1754786780779,5.57673391,4288.8,4288.7,0.00288636]
[1754786781375,5.0294972,4288.8,4288.7,0.00288636]
[1754786781981,4.5633072,4288.8,4288.7,0.00288636]
[1754786785082,4.5633072,4288.8,4288.7,0.17098636]
[1754786786886,5.0294972,4288.8,4288.7,0.00288636]
[1754786789179,11.0294972,4288.8,4288.7,0.00288636]
[1754786790986,11.0294972,4288.8,4287.6,4.3096]
[1754786790987,1.5386,4287.7,4287.6,4.3096]
[1754786791286,4.63921978,4287.7,4287.6,0.9929]
[1754786791682,4.63921978,4287.7,4287.6,0.8186]
[1754786791883,4.64174718,4287.7,4287.6,0.82138386]
[1754786792678,10.64174718,4287.7,4287.6,0.00278386]
[1754786792877,1.1412,4286.5,4286.4,0.9869]
[1754786793388,4.57003663,4286.5,4286.4,1.3728]
[1754786793889,4.57003663,4286.5,4286.4,1.10430382]
[1754786794477,4.57003663,4286.5,4286.4,0.99540382]
[1754786794788,4.57003663,4286.5,4286.4,0.43520382]
[1754786794981,4.57003663,4286.5,4286.4,0.00250382]
[1754786795580,0.583,4285.5,4285.4,3.2078]
[1754786795780,1.477,4285.5,4285.4,3.2078]
[1754786795979,4.53781226,4285.5,4285.4,3.2078]
[1754786796281,1.477,4285.1,4285.0,0.4242]
[1754786796482,3.06081226,4285.5,4285.4,1.51706]
[1754786796681,1.477,4285.9,4285.8,1.0777]
[1754786796990,4.56300409,4285.9,4285.8,1.0777]
[1754786797388,4.17930409,4285.9,4285.8,1.3269]
[1754786797988,4.56300409,4285.9,4285.8,1.3269]
[1754786799192,4.56300409,4285.9,4285.8,0.9678]
[1754786800286,4.56300409,4285.9,4285.4,3.5669]
[1754786800287,0.3837,4285.8,4285.4,3.2078]
[1754786800491,1.477,4285.8,4285.7,1.0773]
[1754786800790,4.50697661,4285.8,4285.7,1.3265]
[1754786801084,3.02997661,4285.8,4285.7,1.3265]
[1754786801286,4.6848,4286.5,4286.4,1.3265]
[1754786801481,4.3011,4286.5,4286.4,1.3265]
[1754786801683,7.35300579,4286.5,4286.4,1.3265]
[1754786802482,6.25970579,4286.5,4286.4,1.3265]
[1754786802787,1.0933,4287.3,4287.2,0.5908]
[1754786802990,1.0933,4287.3,4287.2,1.3265]
[1754786803192,2.9934843,4287.3,4287.2,1.3265]
[1754786803386,3.7933274,4287.7,4287.6,0.5908]
[1754786803588,4.6873274,4287.7,4287.6,1.0773]
[1754786803790,7.75358154,4287.7,4287.6,1.0773]
[1754786804091,7.75358154,4287.7,4287.6,0.9678]
[1754786804385,0.3369,4285.6,4285.5,3.2078]
[1754786804579,3.2078,4286.3,4285.5,4.5343]
[1754786804783,0.8472,4286.1,4286.0,0.9495]
[1754786805087,3.88262014,4286.1,4286.0,0.9495]
[1754786805285,4.51242014,4286.1,4286.0,1.3265]
[1754786805485,4.12872014,4286.1,4286.0,1.3265]
[1754786805886,4.51242014,4286.1,4286.0,1.0773]
[1754786807089,0.005,4286.5,4286.4,0.82185]
[1754786807282,0.005,4286.5,4286.4,1.50605]
[1754786807685,0.2504,4287.1,4287.0,0.5036]
[1754786807885,0.2504,4287.1,4286.9,0.46639]
[1754786808184,0.583,4286.7,4286.6,0.8806]
[1754786808585,3.5841451,4286.7,4286.6,0.9901]
[1754786808787,3.8345451,4286.7,4286.6,0.9901]
[1754786809185,3.5884451,4286.7,4286.6,0.9901]
[1754786809393,0.2504,4286.7,4286.6,0.9901]
[1754786810095,0.2504,4287.0,4286.9,0.9901]
[1754786810299,0.5103,4287.3,4287.2,0.9901]
[1754786810594,0.8497274,4287.7,4287.6,0.9901]
[1754786810893,4.13958043,4287.7,4287.6,0.9901]
[1754786811391,4.68591253,4287.7,4287.6,0.9901]
[1754786811591,4.13958043,4287.7,4287.6,0.9901]
[1754786811898,1.0958274,4287.7,4287.6,0.9901]
[1754786812796,1.4795274,4287.7,4287.6,0.9901]
[1754786813586,1.4795274,4287.7,4287.6,0.8806]
[1754786813798,0.583,4287.4,4287.3,1.18035]
[1754786813998,1.477,4287.4,4287.3,1.10105]
[1754786814495,1.477,4287.3,4287.2,0.46636]
[1754786815898,1.477,4287.3,4287.2,1.34696]
[1754786816098,1.477,4287.3,4287.2,1.45646]
[1754786817897,0.9285,4287.3,4287.2,1.45646]
[1754786818100,0.0025274,4287.7,4287.6,1.45642]
[1754786818398,0.0025274,4287.7,4287.6,4.71372]
[1754786819105,0.0025274,4287.7,4287.6,10.71372]
[1754786819291,1.1293321,4288.8,4288.7,0.9698]
[1754786819491,1.0933,4288.8,4288.7,1.4563]
[1754786819697,2.02436438,4288.8,4288.7,1.4563]
[1754786820198,1.477,4288.8,4288.7,1.4563]
[1754786820500,0.25332659,4288.8,4288.7,1.45925424]
[1754786820896,1.09622659,4288.8,4288.7,1.45925424]
[1754786821101,1.47992659,4288.8,4288.7,1.45925424]
[1754786821403,4.49383971,4288.8,4288.7,0.00295424]
[1754786821597,5.04120409,4288.8,4288.7,0.00295424]
[1754786822191,0.583,4288.2,4288.1,0.46626]
[1754786822398,1.0588,4288.2,4288.1,1.46106]
[1754786822598,1.477,4288.2,4288.1,1.46106]
[1754786822800,0.46622,4288.6,4288.1,1.46106]
[1754786822801,0.4247,4288.6,4288.5,0.5083]
[1754786823103,0.00292659,4288.8,4288.7,0.9948]
[1754786823396,0.00292659,4288.8,4288.7,1.0473]
[1754786825397,0.1636,4289.2,4289.1,0.99036]
[1754786825596,0.4163,4289.2,4289.1,1.50526]
[1754786825799,1.2607,4289.2,4289.1,1.50526]
[1754786826001,1.2607,4289.2,4289.1,1.39586]
[1754786826295,1.5188,4289.0,4288.9,3.2078]
[1754786826502,0.4217,4289.0,4288.9,4.2469]
[1754786826704,0.2581,4289.0,4288.9,4.2469]
[1754786827408,0.2581,4289.0,4288.9,4.2993]
[1754786828199,0.2581,4289.2,4289.1,0.5242]
[1754786828410,4.00678454,4289.6,4288.9,3.2078]
[1754786828411,0.2581,4290.1,4290.0,0.46606]
[1754786828605,0.2581,4290.3,4290.2,0.5149]
[1754786828804,0.2581,4290.6,4290.5,0.9809]
[1754786829006,0.9176,4290.6,4290.5,0.9809]
[1754786829402,0.2527,4291.1,4291.0,0.46595]
[1754786829707,0.5108,4291.1,4291.0,0.98085]
[1754786830008,0.9176,4291.1,4291.0,0.98085]
[1754786830610,0.5108,4291.1,4291.0,0.98085]
[1754786830911,0.2581,4291.1,4291.0,0.98085]
[1754786831099,0.2581,4291.5,4291.4,0.98081]
[1754786831604,0.9176,4291.5,4291.4,0.87141]
[1754786833614,0.5108,4291.5,4291.4,0.98081]
[1754786833801,0.5108,4291.5,4291.4,0.4055]
[1754786834006,0.9176,4291.4,4290.8,3.2078]
[1754786834208,3.09154909,4291.5,4291.3,0.4068]
[1754786834209,3.49834909,4291.5,4291.3,0.4068]
[1754786834415,0.46587,4291.7,4291.5,0.5162]
[1754786834607,3.2078,4292.0,4291.3,0.4068]
[1754786834608,0.4068,4291.4,4291.3,0.4068]
[1754786834918,0.9176,4291.3,4291.0,0.4068]
[1754786835211,0.9176,4291.1,4291.0,0.87274]
[1754786835407,0.5108,4291.1,4291.0,0.98214]
[1754786835814,0.9176,4291.1,4291.0,0.98214]
[1754786836019,0.9176,4291.1,4291.0,0.87274]
[1754786836311,0.9176,4291.1,4291.0,0.98214]
[1754786836815,0.9176,4291.1,4291.0,0.46594]
[1754786837311,0.46593,4291.2,4290.9,0.46596]
[1754786837508,0.2527,4291.0,4290.8,3.67377]
[1754786837705,0.6649,4291.1,4290.8,3.67377]
[1754786837706,0.5108,4291.1,4290.8,3.67377]
[1754786838104,0.2527,4290.9,4290.8,4.08057]
[1754786838314,0.9176,4290.9,4290.8,4.08057]
[1754786838714,0.9176,4290.9,4290.8,3.67377]
[1754786838914,0.9176,4290.9,4290.8,3.2078]
[1754786839316,1.5188,4290.9,4290.8,3.4762]
[1754786839518,1.5188,4290.9,4290.8,3.883]
[1754786841011,1.5188,4290.9,4290.8,4.1388]
[1754786841207,1.5188,4290.9,4290.8,4.2482]
[1754786842118,1.5188,4290.4,4290.3,1.14123]
[1754786842317,1.5188,4290.4,4290.3,0.2684]
[1754786842520,1.5188,4290.3,4290.2,3.2078]
[1754786842912,0.6012,4290.3,4290.1,0.46605]
[1754786843112,1.5188,4290.2,4290.1,0.73445]
[1754786843718,1.5188,4290.2,4290.1,0.2684]
[1754786843919,1.5188,4289.8,4289.7,3.4762]
[1754786844216,0.8402,4289.8,4289.7,3.883]
[1754786844420,0.8402,4289.8,4289.7,4.2482]
[1754786844720,1.5188,4289.8,4289.7,4.2482]
[1754786845115,1.5188,4289.8,4289.7,4.1388]
[1754786845712,1.5188,4289.8,4289.7,3.883]
[1754786845916,1.5188,4289.8,4289.7,3.4762]
[1754786846119,1.5188,4289.8,4289.7,3.2078]
[1754786847615,1.5188,4289.8,4289.7,3.4762]
[1754786847811,0.6012,4289.4,4289.3,0.6752]
[1754786848016,1.5188,4289.4,4289.3,0.6752]
[1754786850220,1.5188,4289.4,4289.2,3.2078]
[1754786850416,1.5188,4289.3,4289.2,3.2078]
[1754786851225,4.55454419,4289.3,4289.2,3.2078]
[1754786851623,0.6012,4288.9,4288.8,0.73458]
[1754786851813,1.5188,4288.9,4288.7,3.67399]
[1754786852014,1.5188,4288.8,4288.7,3.67399]
[1754786852825,0.6012,4288.8,4288.4,0.1094]
[1754786853024,1.5188,4288.5,4288.4,0.2684]
[1754786853621,0.46623,4288.4,4288.2,3.2078]
[1754786853819,0.9176,4288.5,4288.2,3.2078]
[1754786853820,1.5188,4288.3,4288.2,3.2078]
[1754786854027,4.5526257,4288.3,4288.2,3.2078]
[1754786854414,3.6350257,4288.3,4287.8,0.46629]
[1754786854626,0.6012,4287.9,4287.8,1.14149]
[1754786854924,1.5188,4287.9,4287.8,1.14149]
[1754786855119,1.5188,4287.9,4287.7,3.6741]
[1754786855327,1.5496,4287.8,4287.7,3.9246]
[1754786855624,1.5496,4287.8,4287.7,4.3149]
[1754786855812,1.5496,4287.8,4287.7,4.3988]
[1754786856017,1.5496,4287.8,4287.7,3.9246]
[1754786856227,1.5496,4287.8,4287.7,0.7168]
[1754786856424,1.5496,4287.8,4287.7,1.191]
[1754786856624,1.5496,4287.8,4287.7,0.2505]
[1754786856919,0.6103,4288.5,4288.4,0.506]
[1754786857124,1.5496,4288.5,4288.4,0.2505]
[1754786857328,0.6103,4288.1,4288.0,1.10707]
[1754786857521,1.5496,4288.1,4288.0,1.47207]
[1754786857716,1.1418,4288.1,4288.0,1.47207]
[1754786858116,0.54659057,4289.3,4287.7,3.2078]
[1754786858117,1.2825,4288.6,4288.5,1.36251]
[1754786858323,1.5496,4288.6,4288.5,1.36251]
[1754786858519,0.6103,4288.3,4288.2,3.92455]
[1754786858725,1.5496,4288.3,4288.2,3.92455]
[1754786859222,1.1115,4288.0,4287.9,1.36259]
[1754786859418,3.07180362,4288.3,4288.2,1.36255]
[1754786859419,3.94890362,4288.3,4288.2,1.36255]
[1754786859624,1.5496,4288.3,4288.2,1.47205]
[1754786859828,4.51887125,4288.3,4288.2,1.47205]
[1754786862230,4.51887125,4288.3,4288.2,1.36255]
[1754786862830,4.51887125,4288.3,4288.2,4.67985]
[1754786867028,1.5496,4288.8,4288.7,1.472]
[1754786867234,1.5496,4288.8,4288.7,1.3625]
[1754786867824,0.5315,4288.7,4288.6,0.46621]
[1754786868130,4.62958104,4288.7,4288.6,0.71671]
[1754786868330,4.62958104,4288.7,4288.6,1.47201]
[1754786868629,3.68998104,4288.7,4288.6,1.47201]
[1754786868828,1.1418,4289.3,4289.2,0.2555]
[1754786869036,1.5496,4289.3,4289.2,1.47194]
[1754786869339,0.8747,4289.3,4289.2,1.97194]
[1754786869525,1.1418,4289.3,4289.2,0.96614]
[1754786869723,1.5496,4289.3,4289.2,1.35644]
[1754786870128,1.5496,4289.3,4289.2,1.60694]
[1754786871732,1.5496,4289.3,4289.2,1.21664]
[1754786872037,4.59994149,4289.3,4289.2,0.5]
[1754786872430,5.06607149,4289.3,4289.2,0.5]
[1754786873739,5.61437118,4289.3,4289.2,0.5]
[1754786874046,5.61437118,4289.3,4289.2,0.2279]
[1754786875444,5.61437118,4289.3,4289.2,1.0414]
[1754786875745,5.61437118,4289.3,4289.2,0.6511]
[1754786875945,5.61437118,4289.3,4289.2,0.4784]
[1754786876345,5.61437118,4289.3,4289.2,0.2279]
[1754786877848,11.61437118,4289.3,4289.2,0.2279]
[1754786879449,0.6103,4288.3,4288.2,4.26885]
[1754786879745,4.60702033,4288.3,4288.2,5.01325]
[1754786880449,4.60702033,4288.3,4288.2,4.76805]
[1754786880645,5.57326033,4288.3,4288.2,0.5]
[1754786881042,6.12277095,4288.3,4288.2,0.5]
[1754786881745,6.12277095,4288.3,4288.2,0.7505]
[1754786881943,6.12277095,4288.3,4288.2,1.3135]
[1754786882250,5.65653095,4288.3,4288.2,1.3135]
[1754786883848,5.65653095,4288.3,4288.2,0.5]
[1754786884950,5.65653095,4288.3,4288.2,0.7505]
[1754786885144,5.65653095,4288.3,4288.2,1.1371]
[1754786885344,5.65653095,4288.3,4288.2,0.7505]
[1754786885750,5.65653095,4288.3,4288.2,0.5]
[1754786886344,5.65653095,4288.3,4288.2,0.7469]
[1754786887340,5.65653095,4288.3,4288.2,1.311]
[1754786888247,4.10693095,4288.3,4288.2,2.33505]
[1754786888551,3.2078,4289.1,4289.0,1.83497]
[1754786888955,6.28844609,4289.1,4289.0,1.83497]
[1754786889250,6.88024609,4289.1,4289.0,1.3688]
[1754786889451,7.80584609,4289.1,4289.0,1.0965]
[1754786889647,7.80584609,4289.1,4289.0,0.9867]
[1754786890042,7.80584609,4289.1,4289.0,1.45287]
[1754786890248,8.27200609,4289.1,4289.0,1.0965]
[1754786890646,7.80584609,4289.1,4289.0,1.3688]
[1754786890847,4.59804609,4289.1,4289.0,1.83497]
[1754786891047,4.19884609,4289.1,4289.0,1.83497]
[1754786891247,3.08064609,4289.1,4289.0,1.83497]
[1754786891648,3.05986171,4289.2,4289.1,1.3688]
[1754786891844,1.15863,4289.4,4289.3,0.6001]
[1754786892044,1.32283,4289.4,4289.3,1.3688]
[1754786892354,4.62971479,4289.4,4289.3,1.3688]
[1754786892555,5.17869106,4289.4,4289.3,1.3688]
[1754786892853,4.71256106,4289.4,4289.3,1.3688]
[1754786893848,5.11176106,4289.4,4289.3,1.3688]
[1754786894049,5.11176106,4289.4,4289.3,1.0965]
[1754786895054,2.14171106,4289.4,4289.3,0.8108]
[1754786895247,0.5634,4290.5,4289.4,1.16531]
[1754786895451,0.2608,4290.4,4289.4,1.16531]
[1754786895653,0.991,4290.3,4290.2,0.46604]
[1754786895947,1.5174,4290.3,4290.2,0.46604]
[1754786896154,0.2608,4290.3,4290.2,0.46604]
[1754786896758,0.54839142,4291.2,4290.0,1.16513]
[1754786896961,0.54839142,4291.2,4289.2,0.18620241]
[1754786896962,0.2608,4291.0,4290.9,0.46595]
[1754786897162,3.4686,4291.3,4291.2,0.46593]
[1754786897455,4.326,4291.3,4291.2,0.46593]
[1754786897761,4.7252,4291.3,4291.2,0.46593]
[1754786899163,1.5174,4291.3,4291.2,0.46593]
[1754786899458,0.8526,4291.7,4291.6,0.46588]
[1754786899660,1.1182,4291.7,4291.6,0.46588]
[1754786899850,4.61513212,4291.7,4291.6,0.46588]
[1754786900250,4.61513212,4291.7,4290.9,1.16491]
[1754786900562,0.5918,4291.5,4291.4,0.4659]
[1754786900764,1.5174,4291.5,4291.4,0.4659]
[1754786901062,4.50457139,4291.5,4291.4,0.4659]
[1754786903664,1.5174,4291.4,4291.3,0.46591]
[1754786908370,0.2608,4291.4,4291.3,0.46591]
[1754786908671,3.2078,4292.1,4292.0,0.46584]
[1754786908672,4.7252,4292.1,4292.0,0.46584]
[1754786908968,7.74054584,4292.1,4292.0,0.46584]
[1754786909172,3.2078,4292.7,4292.0,0.46584]
[1754786909469,0.2608,4293.0,4292.9,0.46574]
[1754786909771,1.5174,4293.0,4292.9,0.46574]
[1754786910268,1.5174,4293.0,4292.8,0.46575]
[1754786910460,0.991,4293.0,4292.8,0.46575]
[1754786910661,0.8574,4292.9,4292.7,0.46576]
[1754786910967,0.6925,4292.8,4292.7,0.46576]
[1754786911165,1.1182,4292.8,4292.7,0.46576]
[1754786911968,1.05756,4292.8,4292.3,3.2078]
[1754786912168,0.5264,4292.6,4292.5,0.46578]
[1754786912367,3.01930117,4292.7,4292.3,3.2078]
[1754786912567,1.5174,4292.4,4292.1,0.46582]
[1754786912870,0.5918,4292.1,4291.8,3.2078]
[1754786913172,0.2608,4291.9,4291.8,3.67366]
[1754786914160,0.2108,4291.9,4291.8,3.75366]
[1754786914470,1.0682,4291.9,4291.8,3.2878]
[1754786914966,0.2108,4291.9,4291.8,3.2878]
[1754786915167,3.8014,4293.3,4293.2,0.0789]
[1754786915368,3.2078,4293.3,4293.2,0.0789]
[1754786915572,3.07298994,4293.9,4293.8,0.46565]
[1754786915765,0.3735,4294.9,4293.8,3.67345]
[1754786915968,0.6352,4294.7,4293.9,0.46563]
[1754786916165,0.83897,4295.4,4294.3,3.2078]
[1754786916466,0.6897,4295.0,4294.3,3.2078]
[1754786916665,0.90252,4295.0,4294.4,0.46558]
[1754786916972,1.108,4294.4,4294.3,3.2078]
[1754786917177,1.4815,4294.4,4294.3,3.2078]
[1754786917466,1.4815,4294.4,4293.9,0.46563]
[1754786917766,0.4656,4294.3,4293.7,3.2078]
[1754786917972,1.108,4293.8,4293.7,3.2078]
[1754786918169,0.46558,4294.4,4293.7,3.2078]
[1754786918170,3.01125441,4294.5,4293.7,3.2078]
[1754786918466,0.5144,4294.2,4294.0,0.46561]
[1754786918672,0.2527,4294.1,4294.0,0.46561]
[1754786918868,3.3346352,4294.9,4294.0,6.0]
[1754786919073,0.2527,4294.8,4294.3,0.46558]
[1754786919376,0.2527,4294.7,4294.3,0.46558]
[1754786919762,0.2527,4294.6,4294.3,0.46558]
[1754786919967,0.2527,4294.5,4294.3,0.46558]
[1754786920763,0.2527,4294.3,4293.7,3.2078]
[1754786920964,0.2527,4294.5,4294.3,0.46558]
[1754786921164,0.437,4294.7,4294.3,0.46558]
[1754786921366,0.2527,4294.4,4294.3,3.67338]
[1754786921566,1.4815,4294.4,4294.3,3.2078]
[1754786921768,0.4656,4294.3,4293.8,0.46565]
[1754786921965,0.9671,4294.1,4293.8,0.46565]
[1754786922170,0.5144,4294.0,4293.8,0.46565]
[1754786922371,0.2527,4293.9,4293.7,3.2078]
[1754786922572,0.2527,4293.9,4293.8,0.46565]
[1754786922968,0.2527,4293.9,4293.7,3.2078]
[1754786922969,0.2617,4294.5,4293.7,3.2078]
[1754786923169,3.2078,4295.0,4294.7,0.46554]
[1754786923170,0.2527,4294.9,4294.7,0.46554]
[1754786923466,0.00603288,4295.6,4295.5,0.46546]
[1754786924075,0.25873288,4295.6,4295.5,0.46546]
[1754786924868,0.00603288,4295.6,4295.5,0.46546]
[1754786925175,0.00603288,4295.6,4295.5,6.46546]
[1754786925376,0.00603288,4295.6,4295.5,0.46546]
[1754786925764,0.25873288,4295.6,4295.5,0.46546]
[1754786925969,0.00603288,4295.6,4295.5,0.46546]
[1754786926569,0.89393288,4295.6,4295.5,0.46546]
[1754786926876,0.64123288,4295.6,4295.5,0.46546]
[1754786927074,0.00603288,4295.6,4295.5,0.46546]
[1754786927277,0.00603288,4295.6,4295.5,6.46546]
[1754786927573,2.88e-06,4295.6,4295.5,6.46546]
[1754786928072,0.2527,4295.5,4295.4,3.2078]
[1754786928275,0.8879,4295.5,4295.4,3.2078]
[1754786928465,2.88e-06,4295.6,4295.5,0.46546]
[1754786928868,2.88e-06,4295.6,4295.5,6.46546]
[1754786929168,0.00682031,4296.2,4295.7,1.1636]
[1754786929367,0.00682031,4296.2,4296.1,3.6732]
[1754786929772,0.00682031,4296.2,4296.1,9.6732]
[1754786930374,0.2527,4297.4,4296.2,1.16347]
[1754786930574,0.5144,4297.8,4296.9,3.2078]
[1754786930770,0.8879,4298.0,4297.4,3.2078]
[1754786930974,0.46522,4297.8,4297.4,3.2078]
[1754786931279,0.8879,4297.4,4297.0,0.46529]
[1754786931476,0.8879,4297.3,4297.1,0.46528]
[1754786931774,0.8879,4297.1,4296.8,3.67312]
[1754786931975,0.5144,4296.9,4296.8,3.67312]
[1754786932181,0.2527,4297.3,4297.2,0.46528]